[Event "German-ch Blitz Women 2022"]
[Site "Magdeburg"]
[Date "2022.08.13"]
[Round "18.11"]
[White "Heil, Marina"]
[Black "Zschischang, Marine"]
[Result "0-1"]
[ECO "D31"]
[WhiteElo "1926"]
[BlackElo "2083"]
[Annotator "NA RC"]
[PlyCount "102"]
[EventDate "2022.08.10"]
[EventType "tourn"]
[EventCountry "GER"]
[SourceTitle "playchess.com"]
[Source "ChessBase"]
[SourceQuality "1"]
[TimeControl "180+2"]

1. c4 {[%emt 0:00:01]} e6 {[%emt 0:00:00]} 2. Nc3 {[%emt 0:00:01]} d5 {[%emt 0:00:01]} 3. d4 {[%emt 0:00:02]} c6 {[%emt 0:00:01]} 4. Nf3 {[%emt 0:00:02]} dxc4 {[%emt 0:00:01]} 5. e4 {[%emt 0:00:02]} b5 {[%emt 0:00:01]} 6. a4 {[%emt 0:00:06]} Bb4 {[%emt 0:00:02]} 7. axb5 {[%emt 0:00:03]} cxb5 {[%emt 0:00:01]} 8. Bd2 {[%emt 0:00:04]} Bxc3 {[%emt 0:00:02]} 9. bxc3 {[%emt 0:00:01]} Bb7 {[%emt 0:00:10]} 10. e5 {[%emt 0:00:09]} a6 {[%emt 0:00:11]} 11. Rb1 {[%emt 0:00:03]} Qc7 {[%emt 0:00:10]} 12. Be2 {[%emt 0:00:03]} Nd7 {[%emt 0:00:03]} 13. O-O {[%emt 0:00:03]} Nb6 {[%emt 0:00:03]} 14. Nh4 {[%emt 0:00:10]} Ne7 {[%emt 0:00:07]} 15. f4 {[%emt 0:00:03]} Ng6 {[%emt 0:00:14]} 16. Qe1 {[%emt 0:00:15]} Qe7 {[%emt 0:00:24]} 17. Nf3 {[%emt 0:00:12]} Nd5 {[%emt 0:00:17]} 18. Ng5 {[%emt 0:00:24]} h6 {[%emt 0:00:02]} 19. Ne4 {[%emt 0:00:05]} O-O {[%emt 0:00:12]} 20. Nd6 {[%emt 0:00:05]} Bc6 {[%emt 0:00:20]} 21. f5 {[%emt 0:00:08]} exf5 {[%emt 0:00:04]} 22. Nxf5 {[%emt 0:00:03]} Qc7 {[%emt 0:00:13]} 23. Qc1 {[%emt 0:00:08]} Nge7 {[%emt 0:00:17]} 24. Nxh6+ {[%emt 0:00:20]} gxh6 {[%emt 0:00:12]} 25. Bxh6 {[%emt 0:00:01]} Ng6 26. Bxf8 {[%emt 0:00:06]} Kxf8 {[%emt 0:00:16]} 27. Qh6+ {[%emt 0:00:06]} Ke8 {[%emt 0:00:08]} 28. Rf3 {[%emt 0:00:05]} Nde7 {[%emt 0:00:04]} 29. Rf6 {[%emt 0:00:03]} Bd5 {[%emt 0:00:08]} 30. Rbf1 {[%emt 0:00:02]} Be6 {[%emt 0:00:05]} 31. Bh5 {[%emt 0:00:04]} Kd7 {[%emt 0:00:05]} 32. Bxg6 {[%emt 0:00:05]} Nxg6 {[%emt 0:00:01]} 33. Rxf7+ {[%emt 0:00:04]} Bxf7 {[%emt 0:00:01]} 34. Rxf7+ {[%emt 0:00:01]} Ne7 {[%emt 0:00:01]} 35. Qf6 {[%emt 0:00:07]} Re8 {[%emt 0:00:01]} 36. d5 {[%emt 0:00:10]} Qc5+ {[%emt 0:00:01]} 37. Kf1 {[%emt 0:00:01]} Qxd5 {[%emt 0:00:01]} 38. Rg7 {[%emt 0:00:12]} Qd1+ {[%emt 0:00:01]} 39. Kf2 {[%emt 0:00:00]} Qd2+ {[%emt 0:00:01]} 40. Kf1 {[%emt 0:00:01]} Qxc3 {[%emt 0:00:02]} 41. Qd6+ {[%emt 0:00:04]} Kc8 {[%emt 0:00:01]} 42. Qxa6+ {[%emt 0:00:03]} Kd8 {[%emt 0:00:04]} 43. Qa8+ {[%emt 0:00:03]} Kd7 {[%emt 0:00:02]} 44. Qb7+ {[%emt 0:00:02]} Ke6 {[%emt 0:00:04]} 45. Qb6+ {[%emt 0:00:10]} Kxe5 {[%emt 0:00:06]} 46. Qxb5+ {[%emt 0:00:02]} Kf6 {[%emt 0:00:01]} 47. Qg5+ {[%emt 0:00:03]} Ke6 {[%emt 0:00:02]} 48. Qg4+ {[%emt 0:00:07]} Kd6 {[%emt 0:00:03]} 49. Qd1+ {[%emt 0:00:03]} Qd3+ {[%emt 0:00:01]} 50. Qxd3+ {[%emt 0:00:07]} cxd3 {[%emt 0:00:00]} 51. Ke1 {[%emt 0:00:01]} Nf5+ {[%emt 0:00:03]} 0-1

[Event "German-ch Blitz Women 2022"]
[Site "Magdeburg"]
[Date "2022.08.13"]
[Round "18.12"]
[White "Fock, Sana"]
[Black "Schuster, Rebekka"]
[Result "1/2-1/2"]
[ECO "C05"]
[WhiteElo "1807"]
[BlackElo "1815"]
[Annotator "NA RC COMBH"]
[PlyCount "72"]
[EventDate "2022.08.10"]
[EventType "tourn"]
[EventCountry "GER"]
[SourceTitle "playchess.com"]
[Source "ChessBase"]
[SourceQuality "1"]
[TimeControl "180+2"]

1. e4 {[%emt 0:00:01]} e6 {[%emt 0:00:00]} 2. d4 {[%emt 0:00:01]} d5 {[%emt 0:00:01]} 3. Nd2 {[%emt 0:00:02]} Nf6 {[%emt 0:00:00]} 4. e5 {[%emt 0:00:01]} Nfd7 {[%emt 0:00:01]} 5. Bd3 {[%emt 0:00:01]} c5 {[%emt 0:00:01]} 6. c3 {[%emt 0:00:02]} Nc6 {[%emt 0:00:01]} 7. Ne2 {[%emt 0:00:02]} Be7 {[%emt 0:00:11]} 8. O-O {[%emt 0:00:05]} O-O {[%emt 0:00:01]} 9. Nf3 {[%emt 0:00:05]} f6 {[%emt 0:00:06]} 10. exf6 {[%emt 0:00:02]} Nxf6 {[%emt 0:00:02]} 11. Re1 {[%emt 0:00:10]} Bd6 {[%emt 0:00:08]} 12. Bf4 {[%emt 0:00:22]} Re8 {[%emt 0:00:35]} 13. dxc5 {[%emt 0:00:24]} Bxc5 {[%emt 0:00:01]} 14. Ne5 {[%emt 0:00:32]} Bd6 {[%emt 0:00:07]} 15. Nd4 {[%emt 0:00:13]} Qc7 {[%emt 0:00:09]} 16. Ndxc6 {[%emt 0:00:23]} bxc6 {[%emt 0:00:01]} 17. Bg3 {[%emt 0:00:17]} c5 {[%emt 0:00:14]} 18. Rc1 {[%emt 0:00:06]} c4 {[%emt 0:00:06]} 19. Bb1 {[%emt 0:00:02]} Nd7 {[%emt 0:00:11]} 20. Qh5 {[%emt 0:00:08]} Nf6 {[%emt 0:00:05]} 21. Qh4 {[%emt 0:00:16]} Rb8 {[%emt 0:00:22]} 22. Ng4 {[%emt 0:00:03]} Bxg3 {[%emt 0:00:36]} 23. hxg3 {[%emt 0:00:06]} Qe7 {[%emt 0:00:22]} 24. Nxf6+ {[%emt 0:00:02]} gxf6 25. Qg4+ {[%emt 0:00:04]} Qg7 {[%emt 0:00:02]} 26. Qxg7+ {[%emt 0:00:03]} Kxg7 {[%emt 0:00:01]} 27. Re2 {[%emt 0:00:01]} Bd7 {[%emt 0:00:06]} 28. Rd1 {[%emt 0:00:03]} Rbd8 {[%emt 0:00:02]} 29. b3 {[%emt 0:00:01]} cxb3 {[%emt 0:00:02]} 30. axb3 {[%emt 0:00:01]} Rc8 {[%emt 0:00:03]} 31. c4 {[%emt 0:00:02]} Bc6 {[%emt 0:00:05]} 32. cxd5 {[%emt 0:00:04]} Bxd5 {[%emt 0:00:01]} 33. b4 {[%emt 0:00:05]} Rb8 {[%emt 0:00:07]} 34. Rd4 {[%emt 0:00:02]} Rec8 {[%emt 0:00:02]} 35. Kh2 {[%emt 0:00:03]} Rc4 {[%emt 0:00:04]} 36. Rxc4 {[%emt 0:00:04]} Bxc4 {[%emt 0:00:01]} 1/2-1/2

[Event "German-ch Blitz Women 2022"]
[Site "Magdeburg"]
[Date "2022.08.13"]
[Round "19.1"]
[White "Schuster, Rebekka"]
[Black "Paehtz, Elisabeth"]
[Result "0-1"]
[ECO "B90"]
[WhiteElo "1815"]
[BlackElo "2484"]
[Annotator "TA"]
[PlyCount "52"]
[EventDate "2022.08.10"]
[EventType "tourn"]
[EventCountry "GER"]
[SourceTitle "playchess.com"]
[Source "ChessBase"]
[SourceQuality "1"]
[TimeControl "180+2"]

{[%evp 19,52,1,25,0,23,31,19,0,108,0,27,-13,0,-30,-26,-32,-26,-503,-494,-475,-468,-447,-193,-188,-170,-235,-185,-332,-302,-634,-655,-1158,-525,-29993,-2206]} 1. e4 {[%emt 0:00:01]} c5 {[%emt 0:00:00]} 2. Nf3 {[%emt 0:00:01]} d6 {[%emt 0:00:01]} 3. d4 {[%emt 0:00:01]} cxd4 {[%emt 0:00:01]} 4. Nxd4 {[%emt 0:00:01]} Nf6 {[%emt 0:00:01]} 5. Nc3 {[%emt 0:00:01]} a6 {[%emt 0:00:00]} 6. f3 {[%emt 0:00:10]} e5 {[%emt 0:00:02]} 7. Nb3 {[%emt 0:00:01]} Be6 {[%emt 0:00:01]} 8. Be3 {[%emt 0:00:08]} h5 {[%emt 0:00:03]} 9. Qd2 {[%emt 0:00:05]} Nbd7 {[%emt 0:00:01]} 10. O-O-O {[%emt 0:00:02]} Rc8 {[%emt 0:00:01]} 11. Kb1 {[%emt 0:00:20] B90: Sicilian Najdorf: Unusual White 6th moves, 6 Be3 Ng4 and 6 Be3 e5.} b5 {[%emt 0:00:02]} 12. Nd5 {[%emt 0:00:17]} Bxd5 {[%emt 0:00:03]} 13. exd5 {[%emt 0:00:02] The position is equal.} Qc7 {[%emt 0:00:05] [#]} (13... Nb6 $11) 14. Bd3 $146 {[%emt 0:00:03]} ({White should try} 14. c4 $16) ({Predecessor:} 14. Rc1 Nb6 15. Bxb6 Qxb6 16. c4 b4 17. c5 dxc5 18. Bc4 Bd6 19. Qe2 O-O 20. Bxa6 {0-1 (46) Solovchuk,A (2301)-Kuzubov,Y (2643) Chess.com INT 2020}) 14... g6 {[%emt 0:00:25]} 15. Be4 {[%emt 0:00:29]} Nb6 {[%emt 0:00:04]} 16. Bg5 {[%emt 0:00:13]} Nc4 {[%emt 0:00:04]} 17. Qe2 {[%emt 0:00:08]} Bg7 {[%emt 0:00:04]} 18. f4 $2 {[%emt 0:00:08][%mdl 8192] Now White is beyond hope.} (18. c3 $11 {and White is okay.}) 18... Nxe4 $19 {[%emt 0:00:20]} 19. Qxe4 {[%emt 0:00:03]} f5 {[%emt 0:00:03]} 20. Qe2 {[%emt 0:00:06] [#]} O-O {[%emt 0:00:14]} (20... Nxb2 $142 $1 {[%mdl 512]} 21. fxe5 Bxe5) 21. fxe5 {[%emt 0:00:10]} dxe5 {[%emt 0:00:02]} 22. Rhe1 {[%emt 0:00:37]} (22. Bc1 $142) 22... Qd6 {[%emt 0:00:03]} 23. Be3 {[%emt 0:00:19]} (23. Bc1 $142) 23... a5 {[%emt 0:00:06][%cal Ba6a5,Ba5a4][%mdl 32] ...a4 is the strong threat.} ({And not} 23... e4 24. Bd4 $17) 24. Bf2 $2 {[%emt 0:00:11]} (24. Qf2 Rfd8 25. c3) 24... a4 {[%emt 0:00:04]} 25. Nc1 {[%emt 0:00:01] [#]} e4 {[%emt 0:00:04]} (25... Nxb2 $142 $1 {[%mdl 512] Hoping for ...Nc4.} 26. Rd2 (26. Kxb2 Qb4+) 26... Nc4) 26. Bg3 {[%emt 0:00:09] [#]} Qb4 {[%emt 0:00:06] Weighted Error Value: White=1.55/Black=0.67} (26... Na3+ $142 $1 {[%mdl 512]} 27. bxa3 Qf6 28. c3 Qxc3 29. Be5 Bxe5 30. Nb3 axb3 31. Rd4 Bxd4 32. axb3 Qa1#) 0-1

[Event "German-ch Blitz Women 2022"]
[Site "Magdeburg"]
[Date "2022.08.13"]
[Round "19.2"]
[White "Zschischang, Marine"]
[Black "Fock, Sana"]
[Result "0-1"]
[ECO "D51"]
[WhiteElo "2083"]
[BlackElo "1807"]
[Annotator "NA RC"]
[PlyCount "99"]
[EventDate "2022.08.10"]
[EventType "tourn"]
[EventCountry "GER"]
[SourceTitle "playchess.com"]
[Source "ChessBase"]
[SourceQuality "1"]
[TimeControl "180+2"]

1. d4 {[%emt 0:00:01]} d5 2. c4 e6 {[%emt 0:00:02]} 3. Nc3 {[%emt 0:00:01]} Nf6 {[%emt 0:00:01]} 4. Bg5 {[%emt 0:00:01]} Nbd7 {[%emt 0:00:04]} 5. cxd5 {[%emt 0:00:01]} exd5 {[%emt 0:00:01]} 6. e3 {[%emt 0:00:01]} c6 {[%emt 0:00:04]} 7. Nf3 {[%emt 0:00:03]} Be7 {[%emt 0:00:01]} 8. Bd3 {[%emt 0:00:04]} h6 {[%emt 0:00:03]} 9. Bh4 {[%emt 0:00:01]} O-O {[%emt 0:00:06]} 10. Qc2 {[%emt 0:00:04]} Re8 {[%emt 0:00:08]} 11. h3 {[%emt 0:00:02]} b6 {[%emt 0:00:02]} 12. g4 {[%emt 0:00:11]} Ne4 {[%emt 0:00:21]} 13. Bxe7 {[%emt 0:00:08]} Qxe7 {[%emt 0:00:02]} 14. Bxe4 {[%emt 0:00:08]} dxe4 {[%emt 0:00:02]} 15. Nd2 {[%emt 0:00:02]} Nf6 {[%emt 0:00:14]} 16. O-O-O {[%emt 0:00:06]} c5 {[%emt 0:00:05]} 17. dxc5 {[%emt 0:00:10]} Qxc5 {[%emt 0:00:03]} 18. Kb1 {[%emt 0:00:28]} Ba6 {[%emt 0:00:10]} 19. Nb3 {[%emt 0:00:07]} Qc7 {[%emt 0:00:28]} 20. Nc1 {[%emt 0:00:44]} Rac8 {[%emt 0:00:07]} 21. Rd4 {[%emt 0:00:03]} b5 {[%emt 0:00:31]} 22. Rhd1 {[%emt 0:00:17]} Rcd8 {[%emt 0:00:15]} 23. Rxd8 {[%emt 0:00:14]} Rxd8 {[%emt 0:00:01]} 24. Rxd8+ {[%emt 0:00:01]} Qxd8 {[%emt 0:00:01]} 25. Nxe4 {[%emt 0:00:06]} b4 {[%emt 0:00:14]} 26. Nxf6+ {[%emt 0:00:07]} Qxf6 {[%emt 0:00:01]} 27. b3 {[%emt 0:00:09]} Bb7 {[%emt 0:00:11]} 28. f4 {[%emt 0:00:15]} Qe6 {[%emt 0:00:11]} 29. Qd2 {[%emt 0:00:01]} Be4+ {[%emt 0:00:03]} 30. Kb2 {[%emt 0:00:01]} Qf6+ {[%emt 0:00:04]} 31. Qd4 {[%emt 0:00:02]} Qxd4+ {[%emt 0:00:07]} 32. exd4 {[%emt 0:00:01]} Bg2 {[%emt 0:00:02]} 33. h4 {[%emt 0:00:00]} Bf3 {[%emt 0:00:02]} 34. g5 {[%emt 0:00:01]} hxg5 35. hxg5 {[%emt 0:00:04]} f6 {[%emt 0:00:05]} 36. gxf6 {[%emt 0:00:04]} gxf6 {[%emt 0:00:01]} 37. Nd3 {[%emt 0:00:01]} a5 {[%emt 0:00:03]} 38. Ne1 {[%emt 0:00:03]} Be4 {[%emt 0:00:03]} 39. Kc1 {[%emt 0:00:01]} Kf7 {[%emt 0:00:01]} 40. Nc2 {[%emt 0:00:06]} Ke6 {[%emt 0:00:02]} 41. Ne3 {[%emt 0:00:03]} Bd3 {[%emt 0:00:16]} 42. Kb2 {[%emt 0:00:01]} Be4 43. a3 Bd5 44. axb4 axb4 45. Kc2 Kd6 46. Nxd5 Kxd5 47. Kd3 f5 48. Ke3 Ke6 49. Kd2 Kd6 50. Kc2 0-1

[Event "German-ch Blitz Women 2022"]
[Site "Magdeburg"]
[Date "2022.08.13"]
[Round "19.3"]
[White "Staerk, Elisa"]
[Black "Heil, Marina"]
[Result "1-0"]
[ECO "A80"]
[WhiteElo "1947"]
[BlackElo "1926"]
[Annotator "TA"]
[PlyCount "13"]
[EventDate "2022.08.10"]
[EventType "tourn"]
[EventCountry "GER"]
[SourceTitle "playchess.com"]
[Source "ChessBase"]
[SourceQuality "1"]
[TimeControl "180+2"]

{[%evp 9,12,52,901,882,29999]} 1. d4 {[%emt 0:00:01]} f5 {[%emt 0:00:02]} 2. h3 {[%emt 0:00:00]} Nf6 {[%emt 0:00:01]} 3. g4 {[%emt 0:00:01]} fxg4 {[%emt 0:00:04]} 4. hxg4 {[%emt 0:00:01]} Nxg4 {[%emt 0:00:05]} 5. Qd3 {[%emt 0:00:01]} Nf6 $2 {[%emt 0:00:07][%mdl 8192] [#]} (5... g6 $14) 6. Rxh7 $3 $18 {[%emt 0:00:01][%mdl 576] [#] Remove Defender. A80: Dutch Defence: Unusual White second moves.} Rxh7 $146 {[%emt 0:00:04]} (6... d5 7. Rxh8) ({Predecessor:} 6... d6 7. Qg6+ Kd7 8. Rxh8 Nc6 9. Bh3+ e6 10. Qf7+ Ne7 11. Rxf8 {1-0 (11) Vinas Lopez,C (1894)-Villarroya Samaniego,J (1358) Madrid 2017}) 7. Qg6# 1-0

[Event "German-ch Blitz Women 2022"]
[Site "Magdeburg"]
[Date "2022.08.13"]
[Round "19.4"]
[White "Melamed, Tatjana"]
[Black "Leveikina, Jevgenija"]
[Result "1-0"]
[ECO "B10"]
[WhiteElo "2380"]
[BlackElo "2061"]
[Annotator "TA"]
[PlyCount "107"]
[EventDate "2022.08.10"]
[EventType "tourn"]
[EventCountry "GER"]
[SourceTitle "playchess.com"]
[Source "ChessBase"]
[SourceQuality "1"]
[TimeControl "180+2"]

{[%evp 9,107,0,18,14,13,6,9,0,0,4,8,9,8,10,16,0,32,9,19,25,20,0,12,0,22,32,20,-3,148,107,121,96,168,122,168,124,195,183,206,200,241,221,235,204,208,208,255,261,317,233,244,252,270,273,254,237,311,308,291,304,322,272,364,281,313,191,256,164,534,525,791,392,386,340,756,782,1576,828,1538,-394,-354,-353,-330,-488,-379,-402,-382,-369,0,-384,0,-360,-378,-359,454,436,406,408,29990,29991]} 1. e4 c6 2. Nf3 {[%emt 0:00:04]} d5 {[%emt 0:00:00]} 3. exd5 {[%emt 0:00:01]} cxd5 {[%emt 0:00:01]} 4. Ne5 {[%emt 0:00:02]} Nc6 {[%emt 0:00:00]} 5. d4 {[%emt 0:00:05]} Nf6 {[%emt 0:00:02]} 6. Bb5 {[%emt 0:00:03] B10: Caro-Kann: 2 d3 and 2 c4.} Bd7 {[%emt 0:00:02]} 7. Nxd7 {[%emt 0:00:01]} Qxd7 {[%emt 0:00:01]} 8. O-O {[%emt 0:00:02] The position is equal.} e6 {[%emt 0:00:01]} 9. c3 {[%emt 0:00:04]} Bd6 {[%emt 0:00:02]} 10. Bd3 {[%emt 0:00:04]} O-O {[%emt 0:00:05]} 11. Nd2 {[%emt 0:00:01]} a6 {[%emt 0:00:01]} 12. Re1 {[%emt 0:00:02]} b5 {[%emt 0:00:01]} 13. a3 {[%emt 0:00:04] [#]} Na5 $146 {[%emt 0:00:04]} ({Predecessor:} 13... Rab8 14. Nf3 a5 15. Ne5 Qc7 16. Nxc6 Qxc6 17. Bg5 Be7 18. Qf3 h6 19. Bf4 Rbc8 {½-½ (31) Cernousek,L (2369)-Wojtaszek,R (2487) Cartak 2004}) 14. Nf3 {[%emt 0:00:04]} Nc4 {[%emt 0:00:02]} 15. Qe2 {[%emt 0:00:10]} Qc7 {[%emt 0:00:19]} 16. h3 {[%emt 0:00:10]} a5 {[%emt 0:00:07]} 17. b3 {[%emt 0:00:07]} Nb6 {[%emt 0:00:04]} 18. Bd2 {[%emt 0:00:01]} b4 $2 {[%emt 0:00:06]} (18... a4 $11) 19. cxb4 {[%emt 0:00:03]} axb4 {[%emt 0:00:01]} 20. axb4 {[%emt 0:00:13]} ({Of course not} 20. Bxb4 $6 Bxb4 21. axb4 Rxa1 22. Rxa1 Qc3 $11) 20... Qe7 {[%emt 0:00:03]} (20... Ne4 $16 {is a better defense.}) 21. Ne5 {[%emt 0:00:03]} ({White should try} 21. b5 $18) 21... Bxe5 {[%emt 0:00:19]} (21... Ne4 $16) 22. Qxe5 {[%emt 0:00:04]} Nfd7 {[%emt 0:00:11]} (22... Ne4 $16 23. Bxe4 dxe4) 23. Qh5 {[%emt 0:00:08][%csl Gd3][%cal Rh5h7] [#]} g6 {[%emt 0:00:02]} 24. Qe2 {[%emt 0:00:03]} Qf6 {[%emt 0:00:04]} 25. Be3 {[%emt 0:00:07]} Rfc8 {[%emt 0:00:05]} 26. Rec1 {[%emt 0:00:04]} Rxa1 {[%emt 0:00:08]} 27. Rxa1 {[%emt 0:00:01]} Rc3 {[%emt 0:00:02]} 28. Qd2 {[%emt 0:00:25]} Rc7 {[%emt 0:00:16]} (28... Rxb3 $2 29. Bc2 Rb2 30. Qc3 $18) 29. Rc1 {[%emt 0:00:05]} Ra7 {[%emt 0:00:04]} 30. g3 {[%emt 0:00:13]} Ra3 {[%emt 0:00:09]} 31. Qb2 {[%emt 0:00:04]} Ra7 {[%emt 0:00:05]} 32. h4 {[%emt 0:00:02]} h5 {[%emt 0:00:09]} 33. Kg2 {[%emt 0:00:05]} Qe7 {[%emt 0:00:07]} 34. Qc3 {[%emt 0:00:01]} Ra2 {[%emt 0:00:10]} 35. Bf4 {[%emt 0:00:03]} Qf6 {[%emt 0:00:12]} 36. Rc2 {[%emt 0:00:09]} Ra7 {[%emt 0:00:07]} 37. Be5 {[%emt 0:00:07]} Qe7 {[%emt 0:00:09]} (37... Nxe5 $142 38. dxe5 Qd8) 38. b5 {[%emt 0:00:10][%cal Bb4b5,Bb5b6][%mdl 32]} f6 $2 {[%emt 0:00:16]} (38... Nxe5 {is more resistant.} 39. dxe5 Kg7) 39. Bc7 $18 {[%emt 0:00:01]} Kf7 {[%emt 0:00:08]} 40. Bxb6 {[%emt 0:00:02]} (40. Qc6 $142) 40... Nxb6 {[%emt 0:00:02]} 41. Qc6 {[%emt 0:00:00]} Nd7 {[%emt 0:00:10]} (41... Rb7 42. Re2 Rb8) 42. b6 {[%emt 0:00:03]} Ra3 {[%emt 0:00:14]} 43. Re2 {[%emt 0:00:08]} Rxb3 {[%emt 0:00:04] [#]} 44. Rxe6 $4 {[%emt 0:00:00][%mdl 8192]} Qxe6 $19 {[%emt 0:00:04]} 45. Bxg6+ {[%emt 0:00:02]} Ke7 {[%emt 0:00:01]} 46. Qa4 {[%emt 0:00:15]} (46. Qc2 {was the only chance.} Qxb6 47. Qe2+ Qe6 48. Qxh5) 46... Rxb6 {[%emt 0:00:03]} 47. Qa3+ {[%emt 0:00:02]} Qd6 {[%emt 0:00:08]} 48. Qe3+ {[%emt 0:00:01]} Qe6 {[%emt 0:00:01]} 49. Qa3+ {[%emt 0:00:01]} Qd6 $2 {[%emt 0:00:02]} (49... Kd8 $19 {...f5 is the strong threat.} 50. Qa8+ Kc7 51. Qa7+ Kc8 52. Qa8+ Rb8) 50. Qf3 $2 {[%emt 0:00:06][%mdl 8192]} (50. Qe3+ $1 $11 {and White has nothing to worry.} Qe6 51. Qa3+) 50... Rb2 {[%emt 0:00:04]} 51. Qe3+ {[%emt 0:00:01]} Qe6 $4 {[%emt 0:00:01][%mdl 8192]} (51... Kd8 $19 {Hoping for ...Qe7.} 52. Qe8+ Kc7) 52. Qa3+ $18 {[%emt 0:00:02]} Kd8 {[%emt 0:00:04] Strongly threatening ...Qe2.} 53. Qxb2 {[%emt 0:00:01]} Qe2 {[%emt 0:00:02]} (53... Qg4 $18) 54. Qxe2 {[%emt 0:00:01] Both players deserved the win here.  Weighted Error Value: White=0.60/Black=0.86} 1-0

[Event "German-ch Blitz Women 2022"]
[Site "Magdeburg"]
[Date "2022.08.13"]
[Round "19.5"]
[White "Schulze, Lara"]
[Black "Kosovska, Olena"]
[Result "0-1"]
[ECO "B30"]
[WhiteElo "2292"]
[BlackElo "1831"]
[Annotator "TA"]
[PlyCount "87"]
[EventDate "2022.08.10"]
[EventType "tourn"]
[EventCountry "GER"]
[SourceTitle "playchess.com"]
[Source "ChessBase"]
[SourceQuality "1"]
[TimeControl "180+2"]

{[%evp 11,87,48,41,49,33,38,30,33,67,48,48,18,61,12,68,23,67,61,60,7,72,38,49,47,42,26,38,14,29,-15,-14,-15,-7,-20,13,0,0,-25,-11,-11,0,-9,-9,-50,-44,-39,-40,-42,-34,-77,-39,-266,-57,-95,-56,-71,-59,-77,-67,-362,-79,-60,-46,-227,-157,-165,-165,-248,-177,-797,-681,-970,-966,-1110,-607,-670,-650,-2781]} 1. e4 {[%emt 0:00:01]} c5 {[%emt 0:00:00]} 2. Nf3 {[%emt 0:00:01]} Nc6 {[%emt 0:00:01]} 3. Bb5 {[%emt 0:00:01]} e6 {[%emt 0:00:04]} 4. O-O {[%emt 0:00:02]} Be7 {[%emt 0:00:01]} 5. Re1 {[%emt 0:00:06]} d6 {[%emt 0:00:01]} 6. c3 {[%emt 0:00:05]} Nf6 {[%emt 0:00:02]} 7. d4 {[%emt 0:00:01] B51: Sicilian: Moscow Variation (3 Bb5+) without 3...Bd7.} cxd4 {[%emt 0:00:04]} 8. cxd4 {[%emt 0:00:02]} O-O {[%emt 0:00:02]} 9. Nc3 {[%emt 0:00:01] White has an edge.} Bd7 {[%emt 0:00:03]} 10. h3 {[%emt 0:00:07]} Rc8 {[%emt 0:00:02]} 11. Be3 {[%emt 0:00:07]} a6 {[%emt 0:00:00]} 12. Bf1 {[%emt 0:00:02]} (12. Bd3 $14) 12... b5 {[%emt 0:00:01] [#]} (12... d5 $11) 13. Bf4 $146 {[%emt 0:00:12]} ({Predecessor:} 13. d5 exd5 14. exd5 Ne5 15. Nxe5 dxe5 16. d6 Bc6 17. dxe7 Qxe7 18. a3 Rfd8 19. Qe2 {1-0 (28) Musso,H (1811)-Chamlian,A (1684) Montevideo 2014}) 13... Qb6 {[%emt 0:00:10]} 14. e5 {[%emt 0:00:27]} Ne8 {[%emt 0:00:05]} 15. Ne4 {[%emt 0:00:06]} (15. Rc1 $14) 15... d5 {[%emt 0:00:03]} (15... Nb4 $1 $11) 16. Nc3 {[%emt 0:00:10]} (16. Nc5 $5 {[%cal Rc5d7]} Qa7 17. Nxd7 Qxd7 18. a4 $16) 16... Na5 {[%emt 0:00:08]} 17. Bd3 {[%emt 0:00:10]} f5 {[%emt 0:00:09]} 18. exf6 {[%emt 0:00:04]} Nxf6 {[%emt 0:00:08]} 19. Ne5 {[%emt 0:00:04]} Be8 {[%emt 0:00:06]} 20. Bg3 {[%emt 0:00:17]} Nc4 {[%emt 0:00:07]} 21. Bxc4 {[%emt 0:00:22]} bxc4 {[%emt 0:00:06]} 22. Qd2 {[%emt 0:00:11]} Rb8 {[%emt 0:00:06]} 23. Rab1 {[%emt 0:00:07]} Bb4 {[%emt 0:00:10]} 24. f3 {[%emt 0:00:07]} Nh5 {[%emt 0:00:23]} 25. Bh2 {[%emt 0:00:01]} a5 {[%emt 0:00:07]} 26. a3 {[%emt 0:00:09]} Bd6 {[%emt 0:00:01]} 27. Ne2 {[%emt 0:00:13]} Qc7 {[%emt 0:00:05]} 28. Rbc1 {[%emt 0:00:08]} Rb3 {[%emt 0:00:05]} 29. Nc3 {[%emt 0:00:02]} Nf6 {[%emt 0:00:07]} 30. Rc2 {[%emt 0:00:20]} Nd7 {[%emt 0:00:02]} (30... Bg6 $5 {[%cal Rg6c2]} 31. Rcc1 Rfb8 $15) 31. f4 $2 {[%emt 0:00:08] [#]} ({Better is} 31. Qf2 $15) 31... Nf6 $2 {[%emt 0:00:02]} ({Black should try} 31... Nxe5 $1 $19 32. fxe5 Be7) 32. Qe2 {[%emt 0:00:03]} Bh5 {[%emt 0:00:04]} 33. g4 {[%emt 0:00:02]} Be8 {[%emt 0:00:01]} 34. Kh1 {[%emt 0:00:03]} Qb7 {[%emt 0:00:03]} 35. Rd2 $2 {[%emt 0:00:02][%mdl 8192] [#]} (35. f5 $15) 35... Nd7 $2 {[%emt 0:00:03]} (35... Bxa3 $1 $19 {[%mdl 512]} 36. bxa3 (36. g5 Bxb2) 36... Rxc3) 36. Nxd7 $17 {[%emt 0:00:02]} Bxd7 {[%emt 0:00:01]} 37. Qg2 $2 {[%emt 0:00:03]} (37. f5 $1 $15 Bxh2 38. Qxh2 exf5 39. Rf2) 37... Bxf4 {[%emt 0:00:06]} 38. Bxf4 {[%emt 0:00:02]} Rxf4 {[%emt 0:00:01]} 39. Ne2 {[%emt 0:00:04]} (39. Ree2 $142) 39... Re4 {[%emt 0:00:03]} 40. Kh2 $2 {[%emt 0:00:03]} (40. Rf1 Qb8 41. Nc3) 40... Rxb2 {[%emt 0:00:03] Black is clearly winning.} 41. Rxb2 {[%emt 0:00:02]} Qxb2 {[%emt 0:00:01]} 42. Qf3 {[%emt 0:00:02]} Qb3 {[%emt 0:00:20]} 43. Qf2 {[%emt 0:00:02]} Qd3 {[%emt 0:00:04]} 44. Rf1 {Weighted Error Value: White=0.78/Black=0.50} 0-1